[Event "GMT Biel Chess Festival classic"]
[Site "Biel/Bienne, Switzerland"]
[Date "????.??.??"]
[Round "5.1"]
[White "Keymer, Vincent"]
[Black "Studer, NoÃ«l"]
[Result "1-0"]
[TimeControl "90 minutes for the first 40 moves + 30 minutes for the rest of the game with an addition of 30 seconds per move starting from move one"]
[WhiteTitle "GM"]
[BlackTitle "GM"]
[WhiteFideId "12940690"]
[BlackFideId "1319620"]
[WhiteElo "2487"]
[BlackElo "2437"]

1. d4 {[%clk 01:30:57]} {[%emt 00:00:02]} Nf6 {[%clk 01:30:55]} {[%emt
00:00:05]} 2. c4 {[%clk 01:31:24]} {[%emt 00:00:04]} e6 {[%clk 01:31:21]}
{[%emt 00:00:04]} 3. Nc3 {[%clk 01:31:51]} {[%emt 00:00:03]} Bb4 {[%clk
01:31:45]} {[%emt 00:00:05]} 4. f3 {[%clk 01:32:18]} {[%emt 00:00:03]} d5
{[%clk 01:31:44]} {[%emt 00:00:31]} 5. a3 {[%clk 01:32:39]} {[%emt 00:00:10]}
Be7 {[%clk 01:32:09]} {[%emt 00:00:04]} 6. e4 {[%clk 01:33:00]} {[%emt
00:00:08]} dxe4 {[%clk 01:32:33]} {[%emt 00:00:06]} 7. fxe4 {[%clk 01:33:27]}
{[%emt 00:00:03]} c5 {[%clk 01:32:52]} {[%emt 00:00:11]} 8. d5 {[%clk
01:33:53]} {[%emt 00:00:04]} exd5 {[%clk 01:33:13]} {[%emt 00:00:08]} 9. exd5
{[%clk 01:34:19]} {[%emt 00:00:04]} O-O {[%clk 01:33:38]} {[%emt 00:00:05]} 10.
Be2 {[%clk 01:34:45]} {[%emt 00:00:04]} Re8 {[%clk 01:33:48]} {[%emt 00:00:19]}
11. Nf3 {[%clk 01:34:54]} {[%emt 00:00:21]} Bg4 {[%clk 01:34:10]} {[%emt
00:00:08]} 12. O-O {[%clk 01:35:18]} {[%emt 00:00:07]} Nbd7 {[%clk 01:34:17]}
{[%emt 00:00:23]} 13. h3 {[%clk 01:35:41]} {[%emt 00:00:07]} Bxf3 {[%clk
01:30:32]} {[%emt 00:04:15]} 14. Rxf3 {[%clk 01:35:46]} {[%emt 00:00:25]} Bd6
{[%clk 01:26:09]} {[%emt 00:04:52]} 15. Bg5 {[%clk 01:36:09]} {[%emt 00:00:07]}
Qe7 {[%clk 01:18:17]} {[%emt 00:08:22]} 16. Nb5 {[%clk 01:36:24]} {[%emt
00:00:15]} Bb8 {[%clk 01:16:13]} {[%emt 00:02:34]} 17. Re3 {[%clk 01:33:48]}
{[%emt 00:03:06]} Be5 {[%clk 01:15:40]} {[%emt 00:01:03]} 18. d6 {[%clk
01:29:39]} {[%emt 00:04:40]} Qf8 {[%clk 01:15:13]} {[%emt 00:00:56]} 19. Bg4
{[%clk 01:27:11]} {[%emt 00:02:58]} a6 {[%clk 00:46:37]} {[%emt 00:29:06]} 20.
Bxd7 {[%clk 01:13:57]} {[%emt 00:13:44]} Nxd7 {[%clk 00:47:02]} {[%emt
00:00:06]} 21. Be7 {[%clk 01:14:23]} {[%emt 00:00:04]} Rxe7 {[%clk 00:47:16]}
{[%emt 00:00:15]} 22. dxe7 {[%clk 01:14:49]} {[%emt 00:00:04]} Qxe7 {[%clk
00:47:42]} {[%emt 00:00:04]} 23. Nc7 {[%clk 01:12:04]} {[%emt 00:03:15]} Rd8
{[%clk 00:47:25]} {[%emt 00:00:47]} 24. Nd5 {[%clk 01:09:15]} {[%emt 00:03:19]}
Qg5 {[%clk 00:38:25]} {[%emt 00:09:30]} 25. Kh1 {[%clk 01:02:36]} {[%emt
00:07:09]} Bd4 {[%clk 00:35:44]} {[%emt 00:03:11]} 26. Re7 {[%clk 00:55:52]}
{[%emt 00:07:14]} Ne5 {[%clk 00:27:58]} {[%emt 00:08:17]} 27. Rxb7 {[%clk
00:38:30]} {[%emt 00:17:53]} h5 {[%clk 00:20:23]} {[%emt 00:08:04]} 28. Qc1
{[%clk 00:28:49]} {[%emt 00:10:11]} Qh4 {[%clk 00:18:01]} {[%emt 00:02:52]} 29.
Ne7+ {[%clk 00:24:17]} {[%emt 00:05:02]} Kf8 {[%clk 00:13:10]} {[%emt
00:05:21]} 30. Nf5 {[%clk 00:21:53]} {[%emt 00:02:53]} Qf6 {[%clk 00:13:06]}
{[%emt 00:00:34]} 31. Qf1 {[%clk 00:16:39]} {[%emt 00:05:44]} Qc6 {[%clk
00:05:51]} {[%emt 00:07:46]} 32. Rb3 {[%clk 00:14:44]} {[%emt 00:02:25]} Qa4
{[%clk 00:06:17]} {[%emt 00:00:03]} 33. Rg3 {[%clk 00:11:14]} {[%emt 00:03:59]}
Bxb2 {[%clk 00:05:24]} {[%emt 00:01:24]} 34. Rb1 {[%clk 00:07:48]} {[%emt
00:03:56]} Qxc4 {[%clk 00:04:12]} {[%emt 00:01:42]} 35. Qf2 {[%clk 00:07:57]}
{[%emt 00:00:21]} Bc1 {[%clk 00:03:50]} {[%emt 00:00:52]} 36. Qe1 {[%clk
00:04:50]} {[%emt 00:03:37]} Bf4 {[%clk 00:03:31]} {[%emt 00:00:49]} 37. Rd1
{[%clk 00:02:37]} {[%emt 00:02:43]} Re8 {[%clk 00:00:53]} {[%emt 00:03:08]} 38.
Rc3 {[%clk 00:01:46]} {[%emt 00:01:20]} Qe6 {[%clk 00:01:08]} {[%emt 00:00:16]}
39. Qe4 {[%clk 00:01:39]} {[%emt 00:00:37]} Ng6 {[%clk 00:00:46]} {[%emt
00:00:52]} 40. Qxe6 {[%clk 00:01:50]} {[%emt 00:00:18]} fxe6 {[%clk 00:01:11]}
{[%emt 00:00:05]} 41. Ne3 {[%clk 00:25:17]} {[%emt 00:07:03]} Rc8 {[%clk
00:24:07]} {[%emt 00:07:34]} 42. Nc4 {[%clk 00:24:07]} {[%emt 00:01:40]} Rb8
{[%clk 00:09:20]} {[%emt 00:15:17]} 43. g3 {[%clk 00:22:09]} {[%emt 00:02:28]}
Bc7 {[%clk 00:08:21]} {[%emt 00:01:30]} 44. Rd7 {[%clk 00:19:28]} {[%emt
00:03:11]} Bd8 {[%clk 00:06:19]} {[%emt 00:02:32]} 45. Re3 {[%clk 00:13:55]}
{[%emt 00:06:03]} Bf6 {[%clk 00:03:32]} {[%emt 00:03:17]} 46. Rxe6 {[%clk
00:14:05]} {[%emt 00:00:20]} Kg8 {[%clk 00:02:05]} {[%emt 00:01:58]} 47. Rb6
{[%clk 00:07:20]} {[%emt 00:07:15]} Re8 {[%clk 00:02:31]} {[%emt 00:00:04]} 48.
Rd5 {[%clk 00:07:30]} {[%emt 00:00:20]} h4 {[%clk 00:02:32]} {[%emt 00:00:28]}
49. gxh4 {[%clk 00:05:25]} {[%emt 00:02:36]} Nf4 {[%clk 00:01:45]} {[%emt
00:01:17]} 50. Rf5 {[%clk 00:03:59]} {[%emt 00:01:56]} Re4 {[%clk 00:01:05]}
{[%emt 00:01:10]} 51. Nd2 {[%clk 00:03:13]} {[%emt 00:01:15]} Re1+ {[%clk
00:00:41]} {[%emt 00:00:54]} 52. Kh2 {[%clk 00:03:40]} {[%emt 00:00:04]} Be5
{[%clk 00:00:35]} {[%emt 00:00:36]} 53. Nf3 {[%clk 00:03:10]} {[%emt 00:00:59]}
Bc7 {[%clk 00:00:34]} {[%emt 00:00:31]} 54. Nxe1 {[%clk 00:03:04]} {[%emt
00:00:36]} Ne6+ {[%clk 00:00:46]} {[%emt 00:00:18]} 55. Re5 {[%clk 00:02:57]}
{[%emt 00:00:37]} Nd4 {[%clk 00:00:40]} {[%emt 00:00:36]} 56. Rxa6 {[%clk
00:03:14]} {[%emt 00:00:13]} Bxe5+ {[%clk 00:00:48]} {[%emt 00:00:22]} 57. Kg2
{[%clk 00:03:27]} {[%emt 00:00:17]} 1-0

[Event "GMT Biel Chess Festival classic"]
[Site "Biel/Bienne, Switzerland"]
[Date "????.??.??"]
[Round "5.2"]
[White "Wojtaszek, Radoslaw"]
[Black "Pentala, Harikrishna"]
[Result "0-1"]
[TimeControl "90 minutes for the first 40 moves + 30 minutes for the rest of the game with an addition of 30 seconds per move starting from move one"]
[WhiteTitle "GM"]
[BlackTitle "GM"]
[WhiteFideId "1118358"]
[BlackFideId "5007003"]
[WhiteElo "2719"]
[BlackElo "2719"]

1. d4 {[%clk 01:30:57]} {[%emt 00:00:02]} d5 {[%clk 01:30:54]} {[%emt
00:00:07]} 2. c4 {[%clk 01:31:20]} {[%emt 00:00:06]} c6 {[%clk 01:31:21]}
{[%emt 00:00:04]} 3. Nf3 {[%clk 01:31:41]} {[%emt 00:00:08]} Nf6 {[%clk
01:31:46]} {[%emt 00:00:05]} 4. e3 {[%clk 01:31:52]} {[%emt 00:00:19]} Bf5
{[%clk 01:32:06]} {[%emt 00:00:10]} 5. Nc3 {[%clk 01:32:12]} {[%emt 00:00:10]}
e6 {[%clk 01:32:28]} {[%emt 00:00:09]} 6. Nh4 {[%clk 01:32:31]} {[%emt
00:00:10]} Be4 {[%clk 01:32:53]} {[%emt 00:00:05]} 7. f3 {[%clk 01:32:45]}
{[%emt 00:00:15]} Bg6 {[%clk 01:33:14]} {[%emt 00:00:09]} 8. Qb3 {[%clk
01:32:51]} {[%emt 00:00:24]} Qc7 {[%clk 01:33:24]} {[%emt 00:00:21]} 9. Bd2
{[%clk 01:32:34]} {[%emt 00:00:47]} Be7 {[%clk 01:32:50]} {[%emt 00:01:03]} 10.
O-O-O {[%clk 01:32:09]} {[%emt 00:00:56]} dxc4 {[%clk 01:30:43]} {[%emt
00:02:38]} 11. Bxc4 {[%clk 01:32:29]} {[%emt 00:00:09]} b5 {[%clk 01:28:14]}
{[%emt 00:02:59]} 12. Be2 {[%clk 01:32:35]} {[%emt 00:00:24]} a6 {[%clk
01:28:39]} {[%emt 00:00:06]} 13. Nxg6 {[%clk 01:31:56]} {[%emt 00:01:08]} hxg6
{[%clk 01:29:00]} {[%emt 00:00:09]} 14. Ne4 {[%clk 01:32:12]} {[%emt 00:00:14]}
Nxe4 {[%clk 01:25:45]} {[%emt 00:03:46]} 15. fxe4 {[%clk 01:29:05]} {[%emt
00:03:36]} c5 {[%clk 01:25:26]} {[%emt 00:00:49]} 16. Kb1 {[%clk 01:26:07]}
{[%emt 00:03:25]} Nc6 {[%clk 01:22:53]} {[%emt 00:03:06]} 17. Bc3 {[%clk
01:21:38]} {[%emt 00:04:59]} O-O {[%clk 01:07:49]} {[%emt 00:15:34]} 18. h4
{[%clk 01:12:58]} {[%emt 00:09:10]} c4 {[%clk 00:52:43]} {[%emt 00:15:37]} 19.
Qc2 {[%clk 01:13:15]} {[%emt 00:00:12]} b4 {[%clk 00:53:10]} {[%emt 00:00:04]}
20. Be1 {[%clk 01:12:34]} {[%emt 00:01:11]} c3 {[%clk 00:53:29]} {[%emt
00:00:12]} 21. h5 {[%clk 01:08:19]} {[%emt 00:04:45]} g5 {[%clk 00:48:31]}
{[%emt 00:05:27]} 22. e5 {[%clk 00:45:51]} {[%emt 00:22:58]} b3 {[%clk
00:38:16]} {[%emt 00:10:45]} 23. Qxc3 {[%clk 00:42:09]} {[%emt 00:04:12]} bxa2+
{[%clk 00:38:23]} {[%emt 00:00:24]} 24. Ka1 {[%clk 00:41:44]} {[%emt 00:00:56]}
Bb4 {[%clk 00:33:49]} {[%emt 00:05:04]} 25. Qc2 {[%clk 00:38:51]} {[%emt
00:03:23]} Bxe1 {[%clk 00:33:17]} {[%emt 00:01:01]} 26. h6 {[%clk 00:17:30]}
{[%emt 00:21:51]} Rfc8 {[%clk 00:26:39]} {[%emt 00:07:08]} 27. Rdxe1 {[%clk
00:07:41]} {[%emt 00:10:20]} Nb4 {[%clk 00:26:06]} {[%emt 00:01:03]} 28. Qxc7
{[%clk 00:07:59]} {[%emt 00:00:11]} Rxc7 {[%clk 00:26:32]} {[%emt 00:00:05]} 29.
hxg7 {[%clk 00:07:13]} {[%emt 00:01:15]} Nc2+ {[%clk 00:18:16]} {[%emt
00:08:47]} 30. Kxa2 {[%clk 00:07:40]} {[%emt 00:00:04]} Nxe1 {[%clk 00:18:27]}
{[%emt 00:00:18]} 31. Rh8+ {[%clk 00:08:05]} {[%emt 00:00:04]} Kxg7 {[%clk
00:18:53]} {[%emt 00:00:04]} 32. Rxa8 {[%clk 00:08:30]} {[%emt 00:00:05]} Nxg2
{[%clk 00:18:55]} {[%emt 00:00:28]} 33. Rxa6 {[%clk 00:03:55]} {[%emt
00:05:05]} Nxe3 {[%clk 00:19:09]} {[%emt 00:00:16]} 34. Ra3 {[%clk 00:04:19]}
{[%emt 00:00:07]} Nf5 {[%clk 00:10:48]} {[%emt 00:08:50]} 35. Rd3 {[%clk
00:04:46]} {[%emt 00:00:04]} Rd7 {[%clk 00:10:34]} {[%emt 00:00:43]} 36. d5
{[%clk 00:03:01]} {[%emt 00:02:15]} Rxd5 {[%clk 00:08:23]} {[%emt 00:02:41]} 37.
Rxd5 {[%clk 00:03:27]} {[%emt 00:00:04]} exd5 {[%clk 00:08:48]} {[%emt
00:00:04]} 38. b4 {[%clk 00:03:54]} {[%emt 00:00:03]} Nd4 {[%clk 00:08:31]}
{[%emt 00:00:47]} 39. Bg4 {[%clk 00:01:02]} {[%emt 00:03:22]} Nc6 {[%clk
00:06:43]} {[%emt 00:02:18]} 40. b5 {[%clk 00:01:11]} {[%emt 00:00:22]} Nxe5
{[%clk 00:06:43]} {[%emt 00:00:30]} 41. b6 {[%clk 00:29:41]} {[%emt 00:01:59]}
Kf6 {[%clk 00:29:19]} {[%emt 00:07:53]} 42. b7 {[%clk 00:22:15]} {[%emt
00:07:57]} Nc6 {[%clk 00:29:42]} {[%emt 00:00:07]} 43. Ka3 {[%clk 00:19:16]}
{[%emt 00:03:30]} Ke5 {[%clk 00:29:51]} {[%emt 00:00:20]} 44. Ka4 {[%clk
00:19:42]} {[%emt 00:00:04]} Kd6 {[%clk 00:27:55]} {[%emt 00:02:26]} 45. Kb5
{[%clk 00:20:07]} {[%emt 00:00:04]} Kc7 {[%clk 00:26:28]} {[%emt 00:01:56]} 46.
Kc5 {[%clk 00:17:10]} {[%emt 00:03:27]} Ne7 {[%clk 00:24:57]} {[%emt 00:02:01]}
47. b8=Q+ {[%clk 00:16:57]} {[%emt 00:00:43]} Kxb8 {[%clk 00:25:24]} {[%emt
00:00:04]} 48. Kd6 {[%clk 00:17:23]} {[%emt 00:00:04]} f5 {[%clk 00:25:32]}
{[%emt 00:00:22]} 49. Bd1 {[%clk 00:17:48]} {[%emt 00:00:04]} g4 {[%clk
00:24:41]} {[%emt 00:01:21]} 50. Ke5 {[%emt 00:01:13]} 0-1

[Event "GMT Biel Chess Festival classic"]
[Site "Biel/Bienne, Switzerland"]
[Date "????.??.??"]
[Round "5.3"]
[White "Ã‰douard, Romain"]
[Black "Naiditsch, Arkadij"]
[Result "1/2-1/2"]
[TimeControl "90 minutes for the first 40 moves + 30 minutes for the rest of the game with an addition of 30 seconds per move starting from move one"]
[WhiteTitle "GM"]
[BlackTitle "GM"]
[WhiteFideId "633429"]
[BlackFideId "4650891"]
[WhiteElo "2649"]
[BlackElo "2626"]

1. d4 {[%clk 01:30:58]} {[%emt 00:00:01]} Nf6 {[%clk 01:30:54]} {[%emt
00:00:06]} 2. c4 {[%clk 01:31:25]} {[%emt 00:00:04]} e6 {[%clk 01:31:16]}
{[%emt 00:00:08]} 3. Nc3 {[%clk 01:31:50]} {[%emt 00:00:04]} Bb4 {[%clk
01:31:36]} {[%emt 00:00:10]} 4. Nf3 {[%clk 01:32:17]} {[%emt 00:00:03]} b6
{[%clk 01:31:55]} {[%emt 00:00:11]} 5. Qb3 {[%clk 01:32:41]} {[%emt 00:00:06]}
a5 {[%clk 01:29:45]} {[%emt 00:02:40]} 6. g3 {[%clk 01:33:05]} {[%emt
00:00:06]} Nc6 {[%clk 01:25:46]} {[%emt 00:04:28]} 7. Bg2 {[%clk 01:32:25]}
{[%emt 00:01:09]} a4 {[%clk 01:22:11]} {[%emt 00:04:05]} 8. Qc2 {[%clk
01:32:49]} {[%emt 00:00:06]} Ba6 {[%clk 01:21:39]} {[%emt 00:01:03]} 9. O-O
{[%clk 01:28:12]} {[%emt 00:05:06]} a3 {[%clk 00:53:28]} {[%emt 00:28:42]} 10.
Rd1 {[%clk 01:25:49]} {[%emt 00:02:53]} axb2 {[%clk 00:47:35]} {[%emt
00:06:22]} 11. Bxb2 {[%clk 01:26:11]} {[%emt 00:00:08]} Na5 {[%clk 00:47:50]}
{[%emt 00:00:16]} 12. Ne5 {[%clk 01:21:01]} {[%emt 00:05:39]} c6 {[%clk
00:39:10]} {[%emt 00:09:10]} 13. d5 {[%clk 01:10:27]} {[%emt 00:11:04]} cxd5
{[%clk 00:39:26]} {[%emt 00:00:14]} 14. cxd5 {[%clk 01:10:53]} {[%emt
00:00:04]} Rc8 {[%clk 00:39:45]} {[%emt 00:00:11]} 15. dxe6 {[%clk 01:05:36]}
{[%emt 00:05:47]} fxe6 {[%clk 00:38:03]} {[%emt 00:02:13]} 16. Rac1 {[%clk
01:06:01]} {[%emt 00:00:04]} O-O {[%clk 00:35:39]} {[%emt 00:02:53]} 17. Qa4
{[%clk 01:04:23]} {[%emt 00:02:09]} Bc5 {[%clk 00:28:17]} {[%emt 00:07:52]} 18.
Nxd7 {[%clk 01:02:05]} {[%emt 00:02:48]} Nxd7 {[%clk 00:25:54]} {[%emt
00:02:53]} 19. Rxd7 {[%clk 01:01:41]} {[%emt 00:00:53]} Qf6 {[%clk 00:18:54]}
{[%emt 00:07:30]} 20. Kh1 {[%clk 00:57:33]} {[%emt 00:04:39]} Bxe2 {[%clk
00:10:49]} {[%emt 00:08:34]} 21. Qc2 {[%clk 00:47:55]} {[%emt 00:10:08]} Bf3
{[%clk 00:10:08]} {[%emt 00:01:12]} 22. Ne4 {[%clk 00:47:59]} {[%emt 00:00:25]}
Bxg2+ {[%clk 00:09:38]} {[%emt 00:01:00]} 23. Kxg2 {[%clk 00:48:26]} {[%emt
00:00:03]} Qf3+ {[%clk 00:09:58]} {[%emt 00:00:10]} 24. Kg1 {[%clk 00:48:39]}
{[%emt 00:00:17]} e5 {[%clk 00:02:54]} {[%emt 00:07:34]} 25. Bxe5 {[%clk
00:29:40]} {[%emt 00:19:30]} Bxf2+ {[%clk 00:03:10]} {[%emt 00:00:14]} 26. Nxf2
{[%clk 00:30:07]} {[%emt 00:00:03]} Qxf2+ {[%clk 00:03:25]} {[%emt 00:00:15]}
27. Qxf2 {[%clk 00:30:33]} {[%emt 00:00:04]} Rxc1+ {[%clk 00:03:50]} {[%emt
00:00:05]} 28. Kg2 {[%clk 00:31:01]} {[%emt 00:00:01]} Rxf2+ {[%clk 00:04:13]}
{[%emt 00:00:07]} 29. Kxf2 {[%clk 00:31:29]} {[%emt 00:00:02]} Rc2+ {[%clk
00:04:33]} {[%emt 00:00:11]} 30. Kg1 {[%clk 00:31:57]} {[%emt 00:00:02]} g6
{[%clk 00:01:46]} {[%emt 00:03:17]} 31. a4 {[%clk 00:29:34]} {[%emt 00:02:53]}
Nc4 {[%clk 00:01:04]} {[%emt 00:01:12]} 32. Rg7+ {[%clk 00:27:53]} {[%emt
00:02:09]} Kf8 {[%clk 00:01:28]} {[%emt 00:00:08]} 33. Rc7 {[%clk 00:28:19]}
{[%emt 00:00:04]} Rc1+ {[%clk 00:00:40]} {[%emt 00:01:19]} 34. Kg2 {[%clk
00:28:45]} {[%emt 00:00:03]} Ne3+ {[%clk 00:00:35]} {[%emt 00:00:35]} 35. Kf3
{[%clk 00:29:12]} {[%emt 00:00:03]} Rxc7 {[%clk 00:00:57]} {[%emt 00:00:08]} 36.
Bxc7 {[%clk 00:29:39]} {[%emt 00:00:02]} Nd5 {[%clk 00:01:02]} {[%emt
00:00:26]} 37. Be5 {[%clk 00:29:39]} {[%emt 00:00:28]} Ke7 {[%clk 00:01:16]}
{[%emt 00:00:17]} 38. Ke4 {[%clk 00:30:03]} {[%emt 00:00:08]} Ke6 {[%clk
00:01:39]} {[%emt 00:00:06]} 39. g4 {[%clk 00:28:22]} {[%emt 00:02:10]} h5
{[%clk 00:01:29]} {[%emt 00:00:41]} 40. gxh5 {[%clk 00:28:41]} {[%emt
00:00:11]} gxh5 {[%clk 00:01:57]} {[%emt 00:00:02]} 41. Bd4 {[%clk 00:28:03]}
{[%emt 00:01:07]} Kd6 {[%clk 00:22:39]} {[%emt 00:09:48]} 42. Kf5 {[%clk
00:58:22]} {[%emt 00:00:11]} Kc6 {[%clk 00:22:40]} {[%emt 00:00:29]} 43. Kg5
{[%clk 00:58:35]} {[%emt 00:00:16]} b5 {[%clk 00:22:54]} {[%emt 00:00:17]} 44.
a5 {[%clk 00:59:00]} {[%emt 00:00:05]} b4 {[%clk 00:16:01]} {[%emt 00:07:24]}
45. Kxh5 {[%clk 00:51:59]} {[%emt 00:07:30]} Kb5 {[%clk 00:13:36]} {[%emt
00:02:55]} 46. Kg5 {[%clk 00:49:12]} {[%emt 00:03:16]} b3 {[%clk 00:08:02]}
{[%emt 00:06:04]} 47. h4 {[%clk 00:49:06]} {[%emt 00:00:36]} Ne7 {[%clk
00:08:24]} {[%emt 00:00:08]} 48. h5 {[%clk 00:45:45]} {[%emt 00:03:51]} Ng8
{[%clk 00:07:37]} {[%emt 00:01:17]} 49. Bc3 {[%clk 00:46:10]} {[%emt 00:00:05]}
Kc4 {[%clk 00:07:28]} {[%emt 00:00:40]} 50. Bb2 {[%clk 00:44:55]} {[%emt
00:01:45]} Kb5 {[%clk 00:07:51]} {[%emt 00:00:07]} 51. Bc3 {[%clk 00:43:33]}
{[%emt 00:01:51]} 1/2-1/2

[Event "GMT Biel Chess Festival classic"]
[Site "Biel/Bienne, Switzerland"]
[Date "????.??.??"]
[Round "5.4"]
[White "Anton Guijarro, David"]
[Black "Adams, Michael"]
[Result "1-0"]
[TimeControl "90 minutes for the first 40 moves + 30 minutes for the rest of the game with an addition of 30 seconds per move starting from move one"]
[WhiteTitle "GM"]
[BlackTitle "GM"]
[WhiteFideId "2285525"]
[BlackFideId "400041"]
[WhiteElo "2703"]
[BlackElo "2701"]

1. c4 {[%clk 01:30:55]} {[%emt 00:00:03]} Nf6 {[%clk 01:30:27]} {[%emt
00:00:34]} 2. Nf3 {[%clk 01:30:51]} {[%emt 00:00:34]} e6 {[%clk 01:30:37]}
{[%emt 00:00:20]} 3. g3 {[%clk 01:30:46]} {[%emt 00:00:35]} d5 {[%clk
01:30:52]} {[%emt 00:00:15]} 4. Bg2 {[%clk 01:31:03]} {[%emt 00:00:13]} dxc4
{[%clk 01:31:02]} {[%emt 00:00:21]} 5. Qa4+ {[%clk 01:30:44]} {[%emt 00:00:49]}
Bd7 {[%clk 01:31:23]} {[%emt 00:00:09]} 6. Qxc4 {[%clk 01:31:07]} {[%emt
00:00:07]} c5 {[%clk 01:31:47]} {[%emt 00:00:06]} 7. Ne5 {[%clk 01:30:42]}
{[%emt 00:00:54]} Qc8 {[%clk 01:31:55]} {[%emt 00:00:23]} 8. Qd3 {[%clk
01:29:56]} {[%emt 00:01:16]} Nc6 {[%clk 01:31:59]} {[%emt 00:00:26]} 9. Nxd7
{[%clk 01:30:14]} {[%emt 00:00:11]} Nxd7 {[%clk 01:32:26]} {[%emt 00:00:04]} 10.
b3 {[%clk 01:28:38]} {[%emt 00:02:07]} Be7 {[%clk 01:27:20]} {[%emt 00:05:36]}
11. Bb2 {[%clk 01:27:38]} {[%emt 00:01:30]} O-O {[%clk 01:25:35]} {[%emt
00:02:15]} 12. O-O {[%clk 01:26:10]} {[%emt 00:01:58]} Rd8 {[%clk 01:22:28]}
{[%emt 00:03:38]} 13. Nc3 {[%clk 01:24:15]} {[%emt 00:02:25]} Nf6 {[%clk
01:09:30]} {[%emt 00:13:28]} 14. Qc2 {[%clk 01:24:00]} {[%emt 00:00:44]} Nb4
{[%clk 01:05:37]} {[%emt 00:04:23]} 15. Qc1 {[%clk 01:23:16]} {[%emt 00:01:14]}
Qd7 {[%clk 01:05:54]} {[%emt 00:00:14]} 16. Rd1 {[%clk 01:21:30]} {[%emt
00:02:15]} Rac8 {[%clk 01:06:14]} {[%emt 00:00:10]} 17. d3 {[%clk 01:21:19]}
{[%emt 00:00:40]} h6 {[%clk 01:00:13]} {[%emt 00:06:30]} 18. Rb1 {[%clk
01:03:33]} {[%emt 00:18:17]} b6 {[%clk 00:57:00]} {[%emt 00:03:44]} 19. a3
{[%clk 00:59:15]} {[%emt 00:04:48]} Nc6 {[%clk 00:56:35]} {[%emt 00:00:55]} 20.
e3 {[%clk 00:58:01]} {[%emt 00:01:43]} Nd5 {[%clk 00:50:21]} {[%emt 00:06:45]}
21. Ne4 {[%clk 00:54:10]} {[%emt 00:04:20]} Qc7 {[%clk 00:44:34]} {[%emt
00:06:18]} 22. Qc2 {[%clk 00:50:44]} {[%emt 00:03:56]} Qb8 {[%clk 00:44:44]}
{[%emt 00:00:21]} 23. Qe2 {[%clk 00:50:07]} {[%emt 00:01:06]} Ne5 {[%clk
00:42:54]} {[%emt 00:02:20]} 24. Rbc1 {[%clk 00:39:45]} {[%emt 00:10:52]} Nd7
{[%clk 00:39:44]} {[%emt 00:03:41]} 25. f4 {[%clk 00:35:36]} {[%emt 00:04:38]}
a5 {[%clk 00:34:26]} {[%emt 00:05:48]} 26. g4 {[%clk 00:25:01]} {[%emt
00:11:05]} N5f6 {[%clk 00:29:53]} {[%emt 00:05:03]} 27. Nd2 {[%clk 00:18:35]}
{[%emt 00:06:56]} Nd5 {[%clk 00:26:21]} {[%emt 00:04:02]} 28. Ne4 {[%clk
00:16:44]} {[%emt 00:02:21]} N5f6 {[%clk 00:26:45]} {[%emt 00:00:07]} 29. Nc3
{[%clk 00:16:43]} {[%emt 00:00:31]} b5 {[%clk 00:18:40]} {[%emt 00:08:34]} 30.
g5 {[%clk 00:15:32]} {[%emt 00:01:41]} hxg5 {[%clk 00:15:55]} {[%emt 00:03:16]}
31. fxg5 {[%clk 00:15:57]} {[%emt 00:00:05]} Nh7 {[%clk 00:15:06]} {[%emt
00:01:19]} 32. h4 {[%clk 00:15:03]} {[%emt 00:01:23]} Ne5 {[%clk 00:14:12]}
{[%emt 00:01:25]} 33. Ne4 {[%clk 00:14:27]} {[%emt 00:01:06]} c4 {[%clk
00:09:31]} {[%emt 00:05:11]} 34. Bxe5 {[%clk 00:11:20]} {[%emt 00:03:36]} Qxe5
{[%clk 00:09:59]} {[%emt 00:00:02]} 35. d4 {[%clk 00:11:31]} {[%emt 00:00:20]}
Qc7 {[%clk 00:07:50]} {[%emt 00:02:39]} 36. a4 {[%clk 00:08:44]} {[%emt
00:03:17]} f5 {[%clk 00:06:03]} {[%emt 00:02:17]} 37. gxf6 {[%clk 00:07:13]}
{[%emt 00:02:01]} Nxf6 {[%clk 00:06:28]} {[%emt 00:00:05]} 38. Nxf6+ {[%clk
00:07:00]} {[%emt 00:00:42]} Bxf6 {[%clk 00:06:57]} {[%emt 00:00:02]} 39. axb5
{[%clk 00:05:45]} {[%emt 00:01:46]} c3 {[%clk 00:05:40]} {[%emt 00:01:46]} 40.
Qg4 {[%clk 00:04:27]} {[%emt 00:01:47]} Qd6 {[%clk 00:03:00]} {[%emt 00:03:11]}
41. Bf1 {[%clk 00:17:56]} {[%emt 00:17:01]} c2 {[%clk 00:20:12]} {[%emt
00:13:19]} 42. Rd2 {[%clk 00:16:17]} {[%emt 00:02:09]} Rc3 {[%clk 00:20:02]}
{[%emt 00:00:40]} 43. Bd3 {[%clk 00:15:51]} {[%emt 00:00:56]} Rxb3 {[%clk
00:19:17]} {[%emt 00:01:15]} 44. Rcxc2 {[%clk 00:14:19]} {[%emt 00:02:02]} Kf8
{[%clk 00:18:14]} {[%emt 00:01:33]} 45. Rd1 {[%clk 00:06:50]} {[%emt 00:07:58]}
Qb4 {[%clk 00:06:53]} {[%emt 00:11:51]} 46. Rc7 {[%clk 00:04:40]} {[%emt
00:02:40]} Rc3 {[%clk 00:05:08]} {[%emt 00:02:15]} 47. b6 {[%clk 00:03:33]}
{[%emt 00:01:37]} Rxc7 {[%clk 00:04:45]} {[%emt 00:00:53]} 48. bxc7 {[%clk
00:03:58]} {[%emt 00:00:05]} Rc8 {[%clk 00:05:13]} {[%emt 00:00:03]} 49. Qxe6
{[%clk 00:03:28]} {[%emt 00:01:00]} Rxc7 {[%clk 00:05:10]} {[%emt 00:00:33]} 50.
Rb1 {[%clk 00:03:17]} {[%emt 00:00:40]} Re7 {[%clk 00:05:31]} {[%emt 00:00:10]}
51. Qc6 {[%clk 00:02:12]} {[%emt 00:01:35]} Qd2 {[%clk 00:05:38]} {[%emt
00:00:23]} 52. Rb8+ {[%clk 00:02:15]} {[%emt 00:00:26]} Kf7 {[%clk 00:06:06]}
{[%emt 00:00:02]} 53. Qd5+ {[%clk 00:02:23]} {[%emt 00:00:22]} Re6 {[%clk
00:06:35]} {[%emt 00:00:02]} 54. Qh5+ {[%clk 00:02:12]} {[%emt 00:00:40]} 1-0